{"text_format":"3","workbook":"xlsx","n_sheets":3,"sheets":["Müügivihje andmed","Müügiprognoos ","Kaalutud kuupõhine prognoos"],"not_rendered":{"charts":1,"defined_names":10},"read":"whole","date_system":"1900"}

{"sheet":"Müügivihje andmed","index":0,"n_rows":9,"n_cols":10,"rows_kept":9,"merged":[[3,1,3,8]]}
[null,"Ettevõtte nimi"]
[null,"Üksikasjalik müügivihjete jälgimislogi"]
[null,{"$f":"TODAY()","v":"2018-05-21"}]
[null,{"$f":"Ettevõtte_nimi","v":"Ettevõtte nimi"},{"$nulls":7},"KONFIDENTSIAALNE"]
[null,"Müügivihje nimi","Müügivihje kontakt","Müügivihje \nallikas","Müügivihje \npiirkond","Müügivihje \nliik","Võimaluse väärtus","Müügi \ntõenäosus","Prognoositav \nlõpuleviimine","Kaalutud \nprognoos"]
[null,"A. Datum Corporation",{"$nulls":3},"Strateegiline",{"v":300000,"d":"300,000.00 €"},{"v":0.9,"d":"90%"},"Jaanuar",{"$f":"IFERROR(IF(MüügivihjeAndmed[Müügi \ntõenäosus]<>\"\",MüügivihjeAndmed[Müügi \ntõenäosus]*MüügivihjeAndmed[Võimaluse väärtus],\"\"),\"\")","v":{"v":270000,"d":"270,000.00 €"}}]
[null,"Adventure Works",{"$nulls":3},"Strateegiline",{"v":200000,"d":"200,000.00 €"},{"v":0.1,"d":"10%"},"Veebruar",{"$f":"IFERROR(IF(MüügivihjeAndmed[Müügi \ntõenäosus]<>\"\",MüügivihjeAndmed[Müügi \ntõenäosus]*MüügivihjeAndmed[Võimaluse väärtus],\"\"),\"\")","v":{"v":20000,"d":"20,000.00 €"}}]
[null,"Alpine Ski House",{"$nulls":3},"Taktiline",{"v":100000,"d":"100,000.00 €"},{"v":0.2,"d":"20%"},"Märts",{"$f":"IFERROR(IF(MüügivihjeAndmed[Müügi \ntõenäosus]<>\"\",MüügivihjeAndmed[Müügi \ntõenäosus]*MüügivihjeAndmed[Võimaluse väärtus],\"\"),\"\")","v":{"v":20000,"d":"20,000.00 €"}}]
[null,"Kokku",{"$nulls":4},{"$f":"SUBTOTAL(109,MüügivihjeAndmed[Võimaluse väärtus])","v":{"v":600000,"d":"600,000.00 €"}},null,null,{"$f":"SUBTOTAL(109,MüügivihjeAndmed[Kaalutud \nprognoos])","v":{"v":310000,"d":"310,000.00 €"}}]

{"sheet":"Müügiprognoos ","index":1,"n_rows":21,"n_cols":14,"rows_kept":21,"merged":[[3,1,3,11],[3,12,3,13]]}
[null,{"$f":"Ettevõtte_nimi","v":"Ettevõtte nimi"}]
[null,"Müügiprognoos"]
[null,{"$f":"JälgimislogiKuupäev","v":"2018-05-21"}]
[null,{"$f":"Ettevõtte_nimi","v":"Ettevõtte nimi"},{"$nulls":10},"KONFIDENTSIAALNE"]
[null,"Müügivihje nimi","Jaanuar \nprognoos","Veebruar \nprognoos","Märts \nprognoos","Aprill \nprognoos","Mai \nprognoos","Juuni \nprognoos","Juuli prognoos","August \nprognoos","September \nprognoos","Oktoober \nprognoos","November \nprognoos","Detsember \nprognoos"]
[null,{"$f":"IFERROR(IF(AND(MüügivihjeAndmed[Müügivihje nimi] <> \"\", ROW(Müügiprognoos[Müügivihje nimi])<>ViimaneKirje),MüügivihjeAndmed[Müügivihje nimi], \"\"),\"\")","v":"A. Datum Corporation"},{"$f":"IFERROR(IF(MüügivihjeAndmed[Prognoositav \nlõpuleviimine] <>\"\",IF(MüügivihjeAndmed[Prognoositav \nlõpuleviimine]= \"Jaanuar\",MüügivihjeAndmed[Kaalutud \nprognoos],0),\"\"),\"\")","v":{"v":270000,"d":"270,000 €"}},{"$f":"IFERROR(IF(MüügivihjeAndmed[Prognoositav \nlõpuleviimine] <>\"\",IF(MüügivihjeAndmed[Prognoositav \nlõpuleviimine] = \"Veebruar\",MüügivihjeAndmed[Kaalutud \nprognoos],0),\"\"),\"\")","v":{"v":0,"d":"0 €"}},{"$f":"IFERROR(IF(MüügivihjeAndmed[Prognoositav \nlõpuleviimine] <>\"\",IF(MüügivihjeAndmed[Prognoositav \nlõpuleviimine] = \"Märts\",MüügivihjeAndmed[Kaalutud \nprognoos],0),\"\"),\"\")","v":{"v":0,"d":"0 €"}},{"$f":"IFERROR(IF(MüügivihjeAndmed[Prognoositav \nlõpuleviimine] <>\"\",IF(MüügivihjeAndmed[Prognoositav \nlõpuleviimine] = \"Aprill\",MüügivihjeAndmed[Kaalutud \nprognoos],0),\"\"),\"\")","v":{"v":0,"d":"0 €"}},{"$f":"IFERROR(IF(MüügivihjeAndmed[Prognoositav \nlõpuleviimine] <>\"\",IF(MüügivihjeAndmed[Prognoositav \nlõpuleviimine] = \"Mai\",MüügivihjeAndmed[Kaalutud \nprognoos],0),\"\"),\"\")","v":{"v":0,"d":"0 €"}},{"$f":"IFERROR(IF(MüügivihjeAndmed[Prognoositav \nlõpuleviimine] <>\"\",IF(MüügivihjeAndmed[Prognoositav \nlõpuleviimine] = \"Juuni\",MüügivihjeAndmed[Kaalutud \nprognoos],0),\"\"),\"\")","v":{"v":0,"d":"0 €"}},{"$f":"IFERROR(IF(MüügivihjeAndmed[Prognoositav \nlõpuleviimine] <>\"\",IF(MüügivihjeAndmed[Prognoositav \nlõpuleviimine] = \"Juuli\",MüügivihjeAndmed[Kaalutud \nprognoos],0),\"\"),\"\")","v":{"v":0,"d":"0 €"}},{"$f":"IFERROR(IF(MüügivihjeAndmed[Prognoositav \nlõpuleviimine] <>\"\",IF(MüügivihjeAndmed[Prognoositav \nlõpuleviimine] = \"August\",MüügivihjeAndmed[Kaalutud \nprognoos],0),\"\"),\"\")","v":{"v":0,"d":"0 €"}},{"$f":"IFERROR(IF(MüügivihjeAndmed[Prognoositav \nlõpuleviimine] <>\"\",IF(MüügivihjeAndmed[Prognoositav \nlõpuleviimine] = \"September\",MüügivihjeAndmed[Kaalutud \nprognoos],0),\"\"),\"\")","v":{"v":0,"d":"0 €"}},{"$f":"IFERROR(IF(MüügivihjeAndmed[Prognoositav \nlõpuleviimine] <>\"\",IF(MüügivihjeAndmed[Prognoositav \nlõpuleviimine] = \"Oktoober\",MüügivihjeAndmed[Kaalutud \nprognoos],0),\"\"),\"\")","v":{"v":0,"d":"0 €"}},{"$f":"IFERROR(IF(MüügivihjeAndmed[Prognoositav \nlõpuleviimine] <>\"\",IF(MüügivihjeAndmed[Prognoositav \nlõpuleviimine] = \"November\",MüügivihjeAndmed[Kaalutud \nprognoos],0),\"\"),\"\")","v":{"v":0,"d":"0 €"}},{"$f":"IFERROR(IF(MüügivihjeAndmed[Prognoositav \nlõpuleviimine] <>\"\",IF(MüügivihjeAndmed[Prognoositav \nlõpuleviimine] = \"Detsember\",MüügivihjeAndmed[Kaalutud \nprognoos],0),\"\"),\"\")","v":{"v":0,"d":"0 €"}}]
[null,{"$f":"IFERROR(IF(AND(MüügivihjeAndmed[Müügivihje nimi] <> \"\", ROW(Müügiprognoos[Müügivihje nimi])<>ViimaneKirje),MüügivihjeAndmed[Müügivihje nimi], \"\"),\"\")","v":"Adventure Works"},{"$f":"IFERROR(IF(MüügivihjeAndmed[Prognoositav \nlõpuleviimine] <>\"\",IF(MüügivihjeAndmed[Prognoositav \nlõpuleviimine]= \"Jaanuar\",MüügivihjeAndmed[Kaalutud \nprognoos],0),\"\"),\"\")","v":{"v":0,"d":"0 €"}},{"$f":"IFERROR(IF(MüügivihjeAndmed[Prognoositav \nlõpuleviimine] <>\"\",IF(MüügivihjeAndmed[Prognoositav \nlõpuleviimine] = \"Veebruar\",MüügivihjeAndmed[Kaalutud \nprognoos],0),\"\"),\"\")","v":{"v":20000,"d":"20,000 €"}},{"$f":"IFERROR(IF(MüügivihjeAndmed[Prognoositav \nlõpuleviimine] <>\"\",IF(MüügivihjeAndmed[Prognoositav \nlõpuleviimine] = \"Märts\",MüügivihjeAndmed[Kaalutud \nprognoos],0),\"\"),\"\")","v":{"v":0,"d":"0 €"}},{"$f":"IFERROR(IF(MüügivihjeAndmed[Prognoositav \nlõpuleviimine] <>\"\",IF(MüügivihjeAndmed[Prognoositav \nlõpuleviimine] = \"Aprill\",MüügivihjeAndmed[Kaalutud \nprognoos],0),\"\"),\"\")","v":{"v":0,"d":"0 €"}},{"$f":"IFERROR(IF(MüügivihjeAndmed[Prognoositav \nlõpuleviimine] <>\"\",IF(MüügivihjeAndmed[Prognoositav \nlõpuleviimine] = \"Mai\",MüügivihjeAndmed[Kaalutud \nprognoos],0),\"\"),\"\")","v":{"v":0,"d":"0 €"}},{"$f":"IFERROR(IF(MüügivihjeAndmed[Prognoositav \nlõpuleviimine] <>\"\",IF(MüügivihjeAndmed[Prognoositav \nlõpuleviimine] = \"Juuni\",MüügivihjeAndmed[Kaalutud \nprognoos],0),\"\"),\"\")","v":{"v":0,"d":"0 €"}},{"$f":"IFERROR(IF(MüügivihjeAndmed[Prognoositav \nlõpuleviimine] <>\"\",IF(MüügivihjeAndmed[Prognoositav \nlõpuleviimine] = \"Juuli\",MüügivihjeAndmed[Kaalutud \nprognoos],0),\"\"),\"\")","v":{"v":0,"d":"0 €"}},{"$f":"IFERROR(IF(MüügivihjeAndmed[Prognoositav \nlõpuleviimine] <>\"\",IF(MüügivihjeAndmed[Prognoositav \nlõpuleviimine] = \"August\",MüügivihjeAndmed[Kaalutud \nprognoos],0),\"\"),\"\")","v":{"v":0,"d":"0 €"}},{"$f":"IFERROR(IF(MüügivihjeAndmed[Prognoositav \nlõpuleviimine] <>\"\",IF(MüügivihjeAndmed[Prognoositav \nlõpuleviimine] = \"September\",MüügivihjeAndmed[Kaalutud \nprognoos],0),\"\"),\"\")","v":{"v":0,"d":"0 €"}},{"$f":"IFERROR(IF(MüügivihjeAndmed[Prognoositav \nlõpuleviimine] <>\"\",IF(MüügivihjeAndmed[Prognoositav \nlõpuleviimine] = \"Oktoober\",MüügivihjeAndmed[Kaalutud \nprognoos],0),\"\"),\"\")","v":{"v":0,"d":"0 €"}},{"$f":"IFERROR(IF(MüügivihjeAndmed[Prognoositav \nlõpuleviimine] <>\"\",IF(MüügivihjeAndmed[Prognoositav \nlõpuleviimine] = \"November\",MüügivihjeAndmed[Kaalutud \nprognoos],0),\"\"),\"\")","v":{"v":0,"d":"0 €"}},{"$f":"IFERROR(IF(MüügivihjeAndmed[Prognoositav \nlõpuleviimine] <>\"\",IF(MüügivihjeAndmed[Prognoositav \nlõpuleviimine] = \"Detsember\",MüügivihjeAndmed[Kaalutud \nprognoos],0),\"\"),\"\")","v":{"v":0,"d":"0 €"}}]
[null,{"$f":"IFERROR(IF(AND(MüügivihjeAndmed[Müügivihje nimi] <> \"\", ROW(Müügiprognoos[Müügivihje nimi])<>ViimaneKirje),MüügivihjeAndmed[Müügivihje nimi], \"\"),\"\")","v":"Alpine Ski House"},{"$f":"IFERROR(IF(MüügivihjeAndmed[Prognoositav \nlõpuleviimine] <>\"\",IF(MüügivihjeAndmed[Prognoositav \nlõpuleviimine]= \"Jaanuar\",MüügivihjeAndmed[Kaalutud \nprognoos],0),\"\"),\"\")","v":{"v":0,"d":"0 €"}},{"$f":"IFERROR(IF(MüügivihjeAndmed[Prognoositav \nlõpuleviimine] <>\"\",IF(MüügivihjeAndmed[Prognoositav \nlõpuleviimine] = \"Veebruar\",MüügivihjeAndmed[Kaalutud \nprognoos],0),\"\"),\"\")","v":{"v":0,"d":"0 €"}},{"$f":"IFERROR(IF(MüügivihjeAndmed[Prognoositav \nlõpuleviimine] <>\"\",IF(MüügivihjeAndmed[Prognoositav \nlõpuleviimine] = \"Märts\",MüügivihjeAndmed[Kaalutud \nprognoos],0),\"\"),\"\")","v":{"v":20000,"d":"20,000 €"}},{"$f":"IFERROR(IF(MüügivihjeAndmed[Prognoositav \nlõpuleviimine] <>\"\",IF(MüügivihjeAndmed[Prognoositav \nlõpuleviimine] = \"Aprill\",MüügivihjeAndmed[Kaalutud \nprognoos],0),\"\"),\"\")","v":{"v":0,"d":"0 €"}},{"$f":"IFERROR(IF(MüügivihjeAndmed[Prognoositav \nlõpuleviimine] <>\"\",IF(MüügivihjeAndmed[Prognoositav \nlõpuleviimine] = \"Mai\",MüügivihjeAndmed[Kaalutud \nprognoos],0),\"\"),\"\")","v":{"v":0,"d":"0 €"}},{"$f":"IFERROR(IF(MüügivihjeAndmed[Prognoositav \nlõpuleviimine] <>\"\",IF(MüügivihjeAndmed[Prognoositav \nlõpuleviimine] = \"Juuni\",MüügivihjeAndmed[Kaalutud \nprognoos],0),\"\"),\"\")","v":{"v":0,"d":"0 €"}},{"$f":"IFERROR(IF(MüügivihjeAndmed[Prognoositav \nlõpuleviimine] <>\"\",IF(MüügivihjeAndmed[Prognoositav \nlõpuleviimine] = \"Juuli\",MüügivihjeAndmed[Kaalutud \nprognoos],0),\"\"),\"\")","v":{"v":0,"d":"0 €"}},{"$f":"IFERROR(IF(MüügivihjeAndmed[Prognoositav \nlõpuleviimine] <>\"\",IF(MüügivihjeAndmed[Prognoositav \nlõpuleviimine] = \"August\",MüügivihjeAndmed[Kaalutud \nprognoos],0),\"\"),\"\")","v":{"v":0,"d":"0 €"}},{"$f":"IFERROR(IF(MüügivihjeAndmed[Prognoositav \nlõpuleviimine] <>\"\",IF(MüügivihjeAndmed[Prognoositav \nlõpuleviimine] = \"September\",MüügivihjeAndmed[Kaalutud \nprognoos],0),\"\"),\"\")","v":{"v":0,"d":"0 €"}},{"$f":"IFERROR(IF(MüügivihjeAndmed[Prognoositav \nlõpuleviimine] <>\"\",IF(MüügivihjeAndmed[Prognoositav \nlõpuleviimine] = \"Oktoober\",MüügivihjeAndmed[Kaalutud \nprognoos],0),\"\"),\"\")","v":{"v":0,"d":"0 €"}},{"$f":"IFERROR(IF(MüügivihjeAndmed[Prognoositav \nlõpuleviimine] <>\"\",IF(MüügivihjeAndmed[Prognoositav \nlõpuleviimine] = \"November\",MüügivihjeAndmed[Kaalutud \nprognoos],0),\"\"),\"\")","v":{"v":0,"d":"0 €"}},{"$f":"IFERROR(IF(MüügivihjeAndmed[Prognoositav \nlõpuleviimine] <>\"\",IF(MüügivihjeAndmed[Prognoositav \nlõpuleviimine] = \"Detsember\",MüügivihjeAndmed[Kaalutud \nprognoos],0),\"\"),\"\")","v":{"v":0,"d":"0 €"}}]
[null,{"$f":"IFERROR(IF(AND(MüügivihjeAndmed[Müügivihje nimi] <> \"\", ROW(Müügiprognoos[Müügivihje nimi])<>ViimaneKirje),MüügivihjeAndmed[Müügivihje nimi], \"\"),\"\")","v":""},{"$f":"IFERROR(IF(MüügivihjeAndmed[Prognoositav \nlõpuleviimine] <>\"\",IF(MüügivihjeAndmed[Prognoositav \nlõpuleviimine]= \"Jaanuar\",MüügivihjeAndmed[Kaalutud \nprognoos],0),\"\"),\"\")","v":""},{"$f":"IFERROR(IF(MüügivihjeAndmed[Prognoositav \nlõpuleviimine] <>\"\",IF(MüügivihjeAndmed[Prognoositav \nlõpuleviimine] = \"Veebruar\",MüügivihjeAndmed[Kaalutud \nprognoos],0),\"\"),\"\")","v":""},{"$f":"IFERROR(IF(MüügivihjeAndmed[Prognoositav \nlõpuleviimine] <>\"\",IF(MüügivihjeAndmed[Prognoositav \nlõpuleviimine] = \"Märts\",MüügivihjeAndmed[Kaalutud \nprognoos],0),\"\"),\"\")","v":""},{"$f":"IFERROR(IF(MüügivihjeAndmed[Prognoositav \nlõpuleviimine] <>\"\",IF(MüügivihjeAndmed[Prognoositav \nlõpuleviimine] = \"Aprill\",MüügivihjeAndmed[Kaalutud \nprognoos],0),\"\"),\"\")","v":""},{"$f":"IFERROR(IF(MüügivihjeAndmed[Prognoositav \nlõpuleviimine] <>\"\",IF(MüügivihjeAndmed[Prognoositav \nlõpuleviimine] = \"Mai\",MüügivihjeAndmed[Kaalutud \nprognoos],0),\"\"),\"\")","v":""},{"$f":"IFERROR(IF(MüügivihjeAndmed[Prognoositav \nlõpuleviimine] <>\"\",IF(MüügivihjeAndmed[Prognoositav \nlõpuleviimine] = \"Juuni\",MüügivihjeAndmed[Kaalutud \nprognoos],0),\"\"),\"\")","v":""},{"$f":"IFERROR(IF(MüügivihjeAndmed[Prognoositav \nlõpuleviimine] <>\"\",IF(MüügivihjeAndmed[Prognoositav \nlõpuleviimine] = \"Juuli\",MüügivihjeAndmed[Kaalutud \nprognoos],0),\"\"),\"\")","v":""},{"$f":"IFERROR(IF(MüügivihjeAndmed[Prognoositav \nlõpuleviimine] <>\"\",IF(MüügivihjeAndmed[Prognoositav \nlõpuleviimine] = \"August\",MüügivihjeAndmed[Kaalutud \nprognoos],0),\"\"),\"\")","v":""},{"$f":"IFERROR(IF(MüügivihjeAndmed[Prognoositav \nlõpuleviimine] <>\"\",IF(MüügivihjeAndmed[Prognoositav \nlõpuleviimine] = \"September\",MüügivihjeAndmed[Kaalutud \nprognoos],0),\"\"),\"\")","v":""},{"$f":"IFERROR(IF(MüügivihjeAndmed[Prognoositav \nlõpuleviimine] <>\"\",IF(MüügivihjeAndmed[Prognoositav \nlõpuleviimine] = \"Oktoober\",MüügivihjeAndmed[Kaalutud \nprognoos],0),\"\"),\"\")","v":""},{"$f":"IFERROR(IF(MüügivihjeAndmed[Prognoositav \nlõpuleviimine] <>\"\",IF(MüügivihjeAndmed[Prognoositav \nlõpuleviimine] = \"November\",MüügivihjeAndmed[Kaalutud \nprognoos],0),\"\"),\"\")","v":""},{"$f":"IFERROR(IF(MüügivihjeAndmed[Prognoositav \nlõpuleviimine] <>\"\",IF(MüügivihjeAndmed[Prognoositav \nlõpuleviimine] = \"Detsember\",MüügivihjeAndmed[Kaalutud \nprognoos],0),\"\"),\"\")","v":""}]
[null,{"$f":"IFERROR(IF(AND(MüügivihjeAndmed[Müügivihje nimi] <> \"\", ROW(Müügiprognoos[Müügivihje nimi])<>ViimaneKirje),MüügivihjeAndmed[Müügivihje nimi], \"\"),\"\")","v":""},{"$f":"IFERROR(IF(MüügivihjeAndmed[Prognoositav \nlõpuleviimine] <>\"\",IF(MüügivihjeAndmed[Prognoositav \nlõpuleviimine]= \"Jaanuar\",MüügivihjeAndmed[Kaalutud \nprognoos],0),\"\"),\"\")","v":""},{"$f":"IFERROR(IF(MüügivihjeAndmed[Prognoositav \nlõpuleviimine] <>\"\",IF(MüügivihjeAndmed[Prognoositav \nlõpuleviimine] = \"Veebruar\",MüügivihjeAndmed[Kaalutud \nprognoos],0),\"\"),\"\")","v":""},{"$f":"IFERROR(IF(MüügivihjeAndmed[Prognoositav \nlõpuleviimine] <>\"\",IF(MüügivihjeAndmed[Prognoositav \nlõpuleviimine] = \"Märts\",MüügivihjeAndmed[Kaalutud \nprognoos],0),\"\"),\"\")","v":""},{"$f":"IFERROR(IF(MüügivihjeAndmed[Prognoositav \nlõpuleviimine] <>\"\",IF(MüügivihjeAndmed[Prognoositav \nlõpuleviimine] = \"Aprill\",MüügivihjeAndmed[Kaalutud \nprognoos],0),\"\"),\"\")","v":""},{"$f":"IFERROR(IF(MüügivihjeAndmed[Prognoositav \nlõpuleviimine] <>\"\",IF(MüügivihjeAndmed[Prognoositav \nlõpuleviimine] = \"Mai\",MüügivihjeAndmed[Kaalutud \nprognoos],0),\"\"),\"\")","v":""},{"$f":"IFERROR(IF(MüügivihjeAndmed[Prognoositav \nlõpuleviimine] <>\"\",IF(MüügivihjeAndmed[Prognoositav \nlõpuleviimine] = \"Juuni\",MüügivihjeAndmed[Kaalutud \nprognoos],0),\"\"),\"\")","v":""},{"$f":"IFERROR(IF(MüügivihjeAndmed[Prognoositav \nlõpuleviimine] <>\"\",IF(MüügivihjeAndmed[Prognoositav \nlõpuleviimine] = \"Juuli\",MüügivihjeAndmed[Kaalutud \nprognoos],0),\"\"),\"\")","v":""},{"$f":"IFERROR(IF(MüügivihjeAndmed[Prognoositav \nlõpuleviimine] <>\"\",IF(MüügivihjeAndmed[Prognoositav \nlõpuleviimine] = \"August\",MüügivihjeAndmed[Kaalutud \nprognoos],0),\"\"),\"\")","v":""},{"$f":"IFERROR(IF(MüügivihjeAndmed[Prognoositav \nlõpuleviimine] <>\"\",IF(MüügivihjeAndmed[Prognoositav \nlõpuleviimine] = \"September\",MüügivihjeAndmed[Kaalutud \nprognoos],0),\"\"),\"\")","v":""},{"$f":"IFERROR(IF(MüügivihjeAndmed[Prognoositav \nlõpuleviimine] <>\"\",IF(MüügivihjeAndmed[Prognoositav \nlõpuleviimine] = \"Oktoober\",MüügivihjeAndmed[Kaalutud \nprognoos],0),\"\"),\"\")","v":""},{"$f":"IFERROR(IF(MüügivihjeAndmed[Prognoositav \nlõpuleviimine] <>\"\",IF(MüügivihjeAndmed[Prognoositav \nlõpuleviimine] = \"November\",MüügivihjeAndmed[Kaalutud \nprognoos],0),\"\"),\"\")","v":""},{"$f":"IFERROR(IF(MüügivihjeAndmed[Prognoositav \nlõpuleviimine] <>\"\",IF(MüügivihjeAndmed[Prognoositav \nlõpuleviimine] = \"Detsember\",MüügivihjeAndmed[Kaalutud \nprognoos],0),\"\"),\"\")","v":""}]
[null,{"$f":"IFERROR(IF(AND(MüügivihjeAndmed[Müügivihje nimi] <> \"\", ROW(Müügiprognoos[Müügivihje nimi])<>ViimaneKirje),MüügivihjeAndmed[Müügivihje nimi], \"\"),\"\")","v":""},{"$f":"IFERROR(IF(MüügivihjeAndmed[Prognoositav \nlõpuleviimine] <>\"\",IF(MüügivihjeAndmed[Prognoositav \nlõpuleviimine]= \"Jaanuar\",MüügivihjeAndmed[Kaalutud \nprognoos],0),\"\"),\"\")","v":""},{"$f":"IFERROR(IF(MüügivihjeAndmed[Prognoositav \nlõpuleviimine] <>\"\",IF(MüügivihjeAndmed[Prognoositav \nlõpuleviimine] = \"Veebruar\",MüügivihjeAndmed[Kaalutud \nprognoos],0),\"\"),\"\")","v":""},{"$f":"IFERROR(IF(MüügivihjeAndmed[Prognoositav \nlõpuleviimine] <>\"\",IF(MüügivihjeAndmed[Prognoositav \nlõpuleviimine] = \"Märts\",MüügivihjeAndmed[Kaalutud \nprognoos],0),\"\"),\"\")","v":""},{"$f":"IFERROR(IF(MüügivihjeAndmed[Prognoositav \nlõpuleviimine] <>\"\",IF(MüügivihjeAndmed[Prognoositav \nlõpuleviimine] = \"Aprill\",MüügivihjeAndmed[Kaalutud \nprognoos],0),\"\"),\"\")","v":""},{"$f":"IFERROR(IF(MüügivihjeAndmed[Prognoositav \nlõpuleviimine] <>\"\",IF(MüügivihjeAndmed[Prognoositav \nlõpuleviimine] = \"Mai\",MüügivihjeAndmed[Kaalutud \nprognoos],0),\"\"),\"\")","v":""},{"$f":"IFERROR(IF(MüügivihjeAndmed[Prognoositav \nlõpuleviimine] <>\"\",IF(MüügivihjeAndmed[Prognoositav \nlõpuleviimine] = \"Juuni\",MüügivihjeAndmed[Kaalutud \nprognoos],0),\"\"),\"\")","v":""},{"$f":"IFERROR(IF(MüügivihjeAndmed[Prognoositav \nlõpuleviimine] <>\"\",IF(MüügivihjeAndmed[Prognoositav \nlõpuleviimine] = \"Juuli\",MüügivihjeAndmed[Kaalutud \nprognoos],0),\"\"),\"\")","v":""},{"$f":"IFERROR(IF(MüügivihjeAndmed[Prognoositav \nlõpuleviimine] <>\"\",IF(MüügivihjeAndmed[Prognoositav \nlõpuleviimine] = \"August\",MüügivihjeAndmed[Kaalutud \nprognoos],0),\"\"),\"\")","v":""},{"$f":"IFERROR(IF(MüügivihjeAndmed[Prognoositav \nlõpuleviimine] <>\"\",IF(MüügivihjeAndmed[Prognoositav \nlõpuleviimine] = \"September\",MüügivihjeAndmed[Kaalutud \nprognoos],0),\"\"),\"\")","v":""},{"$f":"IFERROR(IF(MüügivihjeAndmed[Prognoositav \nlõpuleviimine] <>\"\",IF(MüügivihjeAndmed[Prognoositav \nlõpuleviimine] = \"Oktoober\",MüügivihjeAndmed[Kaalutud \nprognoos],0),\"\"),\"\")","v":""},{"$f":"IFERROR(IF(MüügivihjeAndmed[Prognoositav \nlõpuleviimine] <>\"\",IF(MüügivihjeAndmed[Prognoositav \nlõpuleviimine] = \"November\",MüügivihjeAndmed[Kaalutud \nprognoos],0),\"\"),\"\")","v":""},{"$f":"IFERROR(IF(MüügivihjeAndmed[Prognoositav \nlõpuleviimine] <>\"\",IF(MüügivihjeAndmed[Prognoositav \nlõpuleviimine] = \"Detsember\",MüügivihjeAndmed[Kaalutud \nprognoos],0),\"\"),\"\")","v":""}]
[null,{"$f":"IFERROR(IF(AND(MüügivihjeAndmed[Müügivihje nimi] <> \"\", ROW(Müügiprognoos[Müügivihje nimi])<>ViimaneKirje),MüügivihjeAndmed[Müügivihje nimi], \"\"),\"\")","v":""},{"$f":"IFERROR(IF(MüügivihjeAndmed[Prognoositav \nlõpuleviimine] <>\"\",IF(MüügivihjeAndmed[Prognoositav \nlõpuleviimine]= \"Jaanuar\",MüügivihjeAndmed[Kaalutud \nprognoos],0),\"\"),\"\")","v":""},{"$f":"IFERROR(IF(MüügivihjeAndmed[Prognoositav \nlõpuleviimine] <>\"\",IF(MüügivihjeAndmed[Prognoositav \nlõpuleviimine] = \"Veebruar\",MüügivihjeAndmed[Kaalutud \nprognoos],0),\"\"),\"\")","v":""},{"$f":"IFERROR(IF(MüügivihjeAndmed[Prognoositav \nlõpuleviimine] <>\"\",IF(MüügivihjeAndmed[Prognoositav \nlõpuleviimine] = \"Märts\",MüügivihjeAndmed[Kaalutud \nprognoos],0),\"\"),\"\")","v":""},{"$f":"IFERROR(IF(MüügivihjeAndmed[Prognoositav \nlõpuleviimine] <>\"\",IF(MüügivihjeAndmed[Prognoositav \nlõpuleviimine] = \"Aprill\",MüügivihjeAndmed[Kaalutud \nprognoos],0),\"\"),\"\")","v":""},{"$f":"IFERROR(IF(MüügivihjeAndmed[Prognoositav \nlõpuleviimine] <>\"\",IF(MüügivihjeAndmed[Prognoositav \nlõpuleviimine] = \"Mai\",MüügivihjeAndmed[Kaalutud \nprognoos],0),\"\"),\"\")","v":""},{"$f":"IFERROR(IF(MüügivihjeAndmed[Prognoositav \nlõpuleviimine] <>\"\",IF(MüügivihjeAndmed[Prognoositav \nlõpuleviimine] = \"Juuni\",MüügivihjeAndmed[Kaalutud \nprognoos],0),\"\"),\"\")","v":""},{"$f":"IFERROR(IF(MüügivihjeAndmed[Prognoositav \nlõpuleviimine] <>\"\",IF(MüügivihjeAndmed[Prognoositav \nlõpuleviimine] = \"Juuli\",MüügivihjeAndmed[Kaalutud \nprognoos],0),\"\"),\"\")","v":""},{"$f":"IFERROR(IF(MüügivihjeAndmed[Prognoositav \nlõpuleviimine] <>\"\",IF(MüügivihjeAndmed[Prognoositav \nlõpuleviimine] = \"August\",MüügivihjeAndmed[Kaalutud \nprognoos],0),\"\"),\"\")","v":""},{"$f":"IFERROR(IF(MüügivihjeAndmed[Prognoositav \nlõpuleviimine] <>\"\",IF(MüügivihjeAndmed[Prognoositav \nlõpuleviimine] = \"September\",MüügivihjeAndmed[Kaalutud \nprognoos],0),\"\"),\"\")","v":""},{"$f":"IFERROR(IF(MüügivihjeAndmed[Prognoositav \nlõpuleviimine] <>\"\",IF(MüügivihjeAndmed[Prognoositav \nlõpuleviimine] = \"Oktoober\",MüügivihjeAndmed[Kaalutud \nprognoos],0),\"\"),\"\")","v":""},{"$f":"IFERROR(IF(MüügivihjeAndmed[Prognoositav \nlõpuleviimine] <>\"\",IF(MüügivihjeAndmed[Prognoositav \nlõpuleviimine] = \"November\",MüügivihjeAndmed[Kaalutud \nprognoos],0),\"\"),\"\")","v":""},{"$f":"IFERROR(IF(MüügivihjeAndmed[Prognoositav \nlõpuleviimine] <>\"\",IF(MüügivihjeAndmed[Prognoositav \nlõpuleviimine] = \"Detsember\",MüügivihjeAndmed[Kaalutud \nprognoos],0),\"\"),\"\")","v":""}]
[null,{"$f":"IFERROR(IF(AND(MüügivihjeAndmed[Müügivihje nimi] <> \"\", ROW(Müügiprognoos[Müügivihje nimi])<>ViimaneKirje),MüügivihjeAndmed[Müügivihje nimi], \"\"),\"\")","v":""},{"$f":"IFERROR(IF(MüügivihjeAndmed[Prognoositav \nlõpuleviimine] <>\"\",IF(MüügivihjeAndmed[Prognoositav \nlõpuleviimine]= \"Jaanuar\",MüügivihjeAndmed[Kaalutud \nprognoos],0),\"\"),\"\")","v":""},{"$f":"IFERROR(IF(MüügivihjeAndmed[Prognoositav \nlõpuleviimine] <>\"\",IF(MüügivihjeAndmed[Prognoositav \nlõpuleviimine] = \"Veebruar\",MüügivihjeAndmed[Kaalutud \nprognoos],0),\"\"),\"\")","v":""},{"$f":"IFERROR(IF(MüügivihjeAndmed[Prognoositav \nlõpuleviimine] <>\"\",IF(MüügivihjeAndmed[Prognoositav \nlõpuleviimine] = \"Märts\",MüügivihjeAndmed[Kaalutud \nprognoos],0),\"\"),\"\")","v":""},{"$f":"IFERROR(IF(MüügivihjeAndmed[Prognoositav \nlõpuleviimine] <>\"\",IF(MüügivihjeAndmed[Prognoositav \nlõpuleviimine] = \"Aprill\",MüügivihjeAndmed[Kaalutud \nprognoos],0),\"\"),\"\")","v":""},{"$f":"IFERROR(IF(MüügivihjeAndmed[Prognoositav \nlõpuleviimine] <>\"\",IF(MüügivihjeAndmed[Prognoositav \nlõpuleviimine] = \"Mai\",MüügivihjeAndmed[Kaalutud \nprognoos],0),\"\"),\"\")","v":""},{"$f":"IFERROR(IF(MüügivihjeAndmed[Prognoositav \nlõpuleviimine] <>\"\",IF(MüügivihjeAndmed[Prognoositav \nlõpuleviimine] = \"Juuni\",MüügivihjeAndmed[Kaalutud \nprognoos],0),\"\"),\"\")","v":""},{"$f":"IFERROR(IF(MüügivihjeAndmed[Prognoositav \nlõpuleviimine] <>\"\",IF(MüügivihjeAndmed[Prognoositav \nlõpuleviimine] = \"Juuli\",MüügivihjeAndmed[Kaalutud \nprognoos],0),\"\"),\"\")","v":""},{"$f":"IFERROR(IF(MüügivihjeAndmed[Prognoositav \nlõpuleviimine] <>\"\",IF(MüügivihjeAndmed[Prognoositav \nlõpuleviimine] = \"August\",MüügivihjeAndmed[Kaalutud \nprognoos],0),\"\"),\"\")","v":""},{"$f":"IFERROR(IF(MüügivihjeAndmed[Prognoositav \nlõpuleviimine] <>\"\",IF(MüügivihjeAndmed[Prognoositav \nlõpuleviimine] = \"September\",MüügivihjeAndmed[Kaalutud \nprognoos],0),\"\"),\"\")","v":""},{"$f":"IFERROR(IF(MüügivihjeAndmed[Prognoositav \nlõpuleviimine] <>\"\",IF(MüügivihjeAndmed[Prognoositav \nlõpuleviimine] = \"Oktoober\",MüügivihjeAndmed[Kaalutud \nprognoos],0),\"\"),\"\")","v":""},{"$f":"IFERROR(IF(MüügivihjeAndmed[Prognoositav \nlõpuleviimine] <>\"\",IF(MüügivihjeAndmed[Prognoositav \nlõpuleviimine] = \"November\",MüügivihjeAndmed[Kaalutud \nprognoos],0),\"\"),\"\")","v":""},{"$f":"IFERROR(IF(MüügivihjeAndmed[Prognoositav \nlõpuleviimine] <>\"\",IF(MüügivihjeAndmed[Prognoositav \nlõpuleviimine] = \"Detsember\",MüügivihjeAndmed[Kaalutud \nprognoos],0),\"\"),\"\")","v":""}]
[null,{"$f":"IFERROR(IF(AND(MüügivihjeAndmed[Müügivihje nimi] <> \"\", ROW(Müügiprognoos[Müügivihje nimi])<>ViimaneKirje),MüügivihjeAndmed[Müügivihje nimi], \"\"),\"\")","v":""},{"$f":"IFERROR(IF(MüügivihjeAndmed[Prognoositav \nlõpuleviimine] <>\"\",IF(MüügivihjeAndmed[Prognoositav \nlõpuleviimine]= \"Jaanuar\",MüügivihjeAndmed[Kaalutud \nprognoos],0),\"\"),\"\")","v":""},{"$f":"IFERROR(IF(MüügivihjeAndmed[Prognoositav \nlõpuleviimine] <>\"\",IF(MüügivihjeAndmed[Prognoositav \nlõpuleviimine] = \"Veebruar\",MüügivihjeAndmed[Kaalutud \nprognoos],0),\"\"),\"\")","v":""},{"$f":"IFERROR(IF(MüügivihjeAndmed[Prognoositav \nlõpuleviimine] <>\"\",IF(MüügivihjeAndmed[Prognoositav \nlõpuleviimine] = \"Märts\",MüügivihjeAndmed[Kaalutud \nprognoos],0),\"\"),\"\")","v":""},{"$f":"IFERROR(IF(MüügivihjeAndmed[Prognoositav \nlõpuleviimine] <>\"\",IF(MüügivihjeAndmed[Prognoositav \nlõpuleviimine] = \"Aprill\",MüügivihjeAndmed[Kaalutud \nprognoos],0),\"\"),\"\")","v":""},{"$f":"IFERROR(IF(MüügivihjeAndmed[Prognoositav \nlõpuleviimine] <>\"\",IF(MüügivihjeAndmed[Prognoositav \nlõpuleviimine] = \"Mai\",MüügivihjeAndmed[Kaalutud \nprognoos],0),\"\"),\"\")","v":""},{"$f":"IFERROR(IF(MüügivihjeAndmed[Prognoositav \nlõpuleviimine] <>\"\",IF(MüügivihjeAndmed[Prognoositav \nlõpuleviimine] = \"Juuni\",MüügivihjeAndmed[Kaalutud \nprognoos],0),\"\"),\"\")","v":""},{"$f":"IFERROR(IF(MüügivihjeAndmed[Prognoositav \nlõpuleviimine] <>\"\",IF(MüügivihjeAndmed[Prognoositav \nlõpuleviimine] = \"Juuli\",MüügivihjeAndmed[Kaalutud \nprognoos],0),\"\"),\"\")","v":""},{"$f":"IFERROR(IF(MüügivihjeAndmed[Prognoositav \nlõpuleviimine] <>\"\",IF(MüügivihjeAndmed[Prognoositav \nlõpuleviimine] = \"August\",MüügivihjeAndmed[Kaalutud \nprognoos],0),\"\"),\"\")","v":""},{"$f":"IFERROR(IF(MüügivihjeAndmed[Prognoositav \nlõpuleviimine] <>\"\",IF(MüügivihjeAndmed[Prognoositav \nlõpuleviimine] = \"September\",MüügivihjeAndmed[Kaalutud \nprognoos],0),\"\"),\"\")","v":""},{"$f":"IFERROR(IF(MüügivihjeAndmed[Prognoositav \nlõpuleviimine] <>\"\",IF(MüügivihjeAndmed[Prognoositav \nlõpuleviimine] = \"Oktoober\",MüügivihjeAndmed[Kaalutud \nprognoos],0),\"\"),\"\")","v":""},{"$f":"IFERROR(IF(MüügivihjeAndmed[Prognoositav \nlõpuleviimine] <>\"\",IF(MüügivihjeAndmed[Prognoositav \nlõpuleviimine] = \"November\",MüügivihjeAndmed[Kaalutud \nprognoos],0),\"\"),\"\")","v":""},{"$f":"IFERROR(IF(MüügivihjeAndmed[Prognoositav \nlõpuleviimine] <>\"\",IF(MüügivihjeAndmed[Prognoositav \nlõpuleviimine] = \"Detsember\",MüügivihjeAndmed[Kaalutud \nprognoos],0),\"\"),\"\")","v":""}]
[null,{"$f":"IFERROR(IF(AND(MüügivihjeAndmed[Müügivihje nimi] <> \"\", ROW(Müügiprognoos[Müügivihje nimi])<>ViimaneKirje),MüügivihjeAndmed[Müügivihje nimi], \"\"),\"\")","v":""},{"$f":"IFERROR(IF(MüügivihjeAndmed[Prognoositav \nlõpuleviimine] <>\"\",IF(MüügivihjeAndmed[Prognoositav \nlõpuleviimine]= \"Jaanuar\",MüügivihjeAndmed[Kaalutud \nprognoos],0),\"\"),\"\")","v":""},{"$f":"IFERROR(IF(MüügivihjeAndmed[Prognoositav \nlõpuleviimine] <>\"\",IF(MüügivihjeAndmed[Prognoositav \nlõpuleviimine] = \"Veebruar\",MüügivihjeAndmed[Kaalutud \nprognoos],0),\"\"),\"\")","v":""},{"$f":"IFERROR(IF(MüügivihjeAndmed[Prognoositav \nlõpuleviimine] <>\"\",IF(MüügivihjeAndmed[Prognoositav \nlõpuleviimine] = \"Märts\",MüügivihjeAndmed[Kaalutud \nprognoos],0),\"\"),\"\")","v":""},{"$f":"IFERROR(IF(MüügivihjeAndmed[Prognoositav \nlõpuleviimine] <>\"\",IF(MüügivihjeAndmed[Prognoositav \nlõpuleviimine] = \"Aprill\",MüügivihjeAndmed[Kaalutud \nprognoos],0),\"\"),\"\")","v":""},{"$f":"IFERROR(IF(MüügivihjeAndmed[Prognoositav \nlõpuleviimine] <>\"\",IF(MüügivihjeAndmed[Prognoositav \nlõpuleviimine] = \"Mai\",MüügivihjeAndmed[Kaalutud \nprognoos],0),\"\"),\"\")","v":""},{"$f":"IFERROR(IF(MüügivihjeAndmed[Prognoositav \nlõpuleviimine] <>\"\",IF(MüügivihjeAndmed[Prognoositav \nlõpuleviimine] = \"Juuni\",MüügivihjeAndmed[Kaalutud \nprognoos],0),\"\"),\"\")","v":""},{"$f":"IFERROR(IF(MüügivihjeAndmed[Prognoositav \nlõpuleviimine] <>\"\",IF(MüügivihjeAndmed[Prognoositav \nlõpuleviimine] = \"Juuli\",MüügivihjeAndmed[Kaalutud \nprognoos],0),\"\"),\"\")","v":""},{"$f":"IFERROR(IF(MüügivihjeAndmed[Prognoositav \nlõpuleviimine] <>\"\",IF(MüügivihjeAndmed[Prognoositav \nlõpuleviimine] = \"August\",MüügivihjeAndmed[Kaalutud \nprognoos],0),\"\"),\"\")","v":""},{"$f":"IFERROR(IF(MüügivihjeAndmed[Prognoositav \nlõpuleviimine] <>\"\",IF(MüügivihjeAndmed[Prognoositav \nlõpuleviimine] = \"September\",MüügivihjeAndmed[Kaalutud \nprognoos],0),\"\"),\"\")","v":""},{"$f":"IFERROR(IF(MüügivihjeAndmed[Prognoositav \nlõpuleviimine] <>\"\",IF(MüügivihjeAndmed[Prognoositav \nlõpuleviimine] = \"Oktoober\",MüügivihjeAndmed[Kaalutud \nprognoos],0),\"\"),\"\")","v":""},{"$f":"IFERROR(IF(MüügivihjeAndmed[Prognoositav \nlõpuleviimine] <>\"\",IF(MüügivihjeAndmed[Prognoositav \nlõpuleviimine] = \"November\",MüügivihjeAndmed[Kaalutud \nprognoos],0),\"\"),\"\")","v":""},{"$f":"IFERROR(IF(MüügivihjeAndmed[Prognoositav \nlõpuleviimine] <>\"\",IF(MüügivihjeAndmed[Prognoositav \nlõpuleviimine] = \"Detsember\",MüügivihjeAndmed[Kaalutud \nprognoos],0),\"\"),\"\")","v":""}]
[null,{"$f":"IFERROR(IF(AND(MüügivihjeAndmed[Müügivihje nimi] <> \"\", ROW(Müügiprognoos[Müügivihje nimi])<>ViimaneKirje),MüügivihjeAndmed[Müügivihje nimi], \"\"),\"\")","v":""},{"$f":"IFERROR(IF(MüügivihjeAndmed[Prognoositav \nlõpuleviimine] <>\"\",IF(MüügivihjeAndmed[Prognoositav \nlõpuleviimine]= \"Jaanuar\",MüügivihjeAndmed[Kaalutud \nprognoos],0),\"\"),\"\")","v":""},{"$f":"IFERROR(IF(MüügivihjeAndmed[Prognoositav \nlõpuleviimine] <>\"\",IF(MüügivihjeAndmed[Prognoositav \nlõpuleviimine] = \"Veebruar\",MüügivihjeAndmed[Kaalutud \nprognoos],0),\"\"),\"\")","v":""},{"$f":"IFERROR(IF(MüügivihjeAndmed[Prognoositav \nlõpuleviimine] <>\"\",IF(MüügivihjeAndmed[Prognoositav \nlõpuleviimine] = \"Märts\",MüügivihjeAndmed[Kaalutud \nprognoos],0),\"\"),\"\")","v":""},{"$f":"IFERROR(IF(MüügivihjeAndmed[Prognoositav \nlõpuleviimine] <>\"\",IF(MüügivihjeAndmed[Prognoositav \nlõpuleviimine] = \"Aprill\",MüügivihjeAndmed[Kaalutud \nprognoos],0),\"\"),\"\")","v":""},{"$f":"IFERROR(IF(MüügivihjeAndmed[Prognoositav \nlõpuleviimine] <>\"\",IF(MüügivihjeAndmed[Prognoositav \nlõpuleviimine] = \"Mai\",MüügivihjeAndmed[Kaalutud \nprognoos],0),\"\"),\"\")","v":""},{"$f":"IFERROR(IF(MüügivihjeAndmed[Prognoositav \nlõpuleviimine] <>\"\",IF(MüügivihjeAndmed[Prognoositav \nlõpuleviimine] = \"Juuni\",MüügivihjeAndmed[Kaalutud \nprognoos],0),\"\"),\"\")","v":""},{"$f":"IFERROR(IF(MüügivihjeAndmed[Prognoositav \nlõpuleviimine] <>\"\",IF(MüügivihjeAndmed[Prognoositav \nlõpuleviimine] = \"Juuli\",MüügivihjeAndmed[Kaalutud \nprognoos],0),\"\"),\"\")","v":""},{"$f":"IFERROR(IF(MüügivihjeAndmed[Prognoositav \nlõpuleviimine] <>\"\",IF(MüügivihjeAndmed[Prognoositav \nlõpuleviimine] = \"August\",MüügivihjeAndmed[Kaalutud \nprognoos],0),\"\"),\"\")","v":""},{"$f":"IFERROR(IF(MüügivihjeAndmed[Prognoositav \nlõpuleviimine] <>\"\",IF(MüügivihjeAndmed[Prognoositav \nlõpuleviimine] = \"September\",MüügivihjeAndmed[Kaalutud \nprognoos],0),\"\"),\"\")","v":""},{"$f":"IFERROR(IF(MüügivihjeAndmed[Prognoositav \nlõpuleviimine] <>\"\",IF(MüügivihjeAndmed[Prognoositav \nlõpuleviimine] = \"Oktoober\",MüügivihjeAndmed[Kaalutud \nprognoos],0),\"\"),\"\")","v":""},{"$f":"IFERROR(IF(MüügivihjeAndmed[Prognoositav \nlõpuleviimine] <>\"\",IF(MüügivihjeAndmed[Prognoositav \nlõpuleviimine] = \"November\",MüügivihjeAndmed[Kaalutud \nprognoos],0),\"\"),\"\")","v":""},{"$f":"IFERROR(IF(MüügivihjeAndmed[Prognoositav \nlõpuleviimine] <>\"\",IF(MüügivihjeAndmed[Prognoositav \nlõpuleviimine] = \"Detsember\",MüügivihjeAndmed[Kaalutud \nprognoos],0),\"\"),\"\")","v":""}]
[null,{"$f":"IFERROR(IF(AND(MüügivihjeAndmed[Müügivihje nimi] <> \"\", ROW(Müügiprognoos[Müügivihje nimi])<>ViimaneKirje),MüügivihjeAndmed[Müügivihje nimi], \"\"),\"\")","v":""},{"$f":"IFERROR(IF(MüügivihjeAndmed[Prognoositav \nlõpuleviimine] <>\"\",IF(MüügivihjeAndmed[Prognoositav \nlõpuleviimine]= \"Jaanuar\",MüügivihjeAndmed[Kaalutud \nprognoos],0),\"\"),\"\")","v":""},{"$f":"IFERROR(IF(MüügivihjeAndmed[Prognoositav \nlõpuleviimine] <>\"\",IF(MüügivihjeAndmed[Prognoositav \nlõpuleviimine] = \"Veebruar\",MüügivihjeAndmed[Kaalutud \nprognoos],0),\"\"),\"\")","v":""},{"$f":"IFERROR(IF(MüügivihjeAndmed[Prognoositav \nlõpuleviimine] <>\"\",IF(MüügivihjeAndmed[Prognoositav \nlõpuleviimine] = \"Märts\",MüügivihjeAndmed[Kaalutud \nprognoos],0),\"\"),\"\")","v":""},{"$f":"IFERROR(IF(MüügivihjeAndmed[Prognoositav \nlõpuleviimine] <>\"\",IF(MüügivihjeAndmed[Prognoositav \nlõpuleviimine] = \"Aprill\",MüügivihjeAndmed[Kaalutud \nprognoos],0),\"\"),\"\")","v":""},{"$f":"IFERROR(IF(MüügivihjeAndmed[Prognoositav \nlõpuleviimine] <>\"\",IF(MüügivihjeAndmed[Prognoositav \nlõpuleviimine] = \"Mai\",MüügivihjeAndmed[Kaalutud \nprognoos],0),\"\"),\"\")","v":""},{"$f":"IFERROR(IF(MüügivihjeAndmed[Prognoositav \nlõpuleviimine] <>\"\",IF(MüügivihjeAndmed[Prognoositav \nlõpuleviimine] = \"Juuni\",MüügivihjeAndmed[Kaalutud \nprognoos],0),\"\"),\"\")","v":""},{"$f":"IFERROR(IF(MüügivihjeAndmed[Prognoositav \nlõpuleviimine] <>\"\",IF(MüügivihjeAndmed[Prognoositav \nlõpuleviimine] = \"Juuli\",MüügivihjeAndmed[Kaalutud \nprognoos],0),\"\"),\"\")","v":""},{"$f":"IFERROR(IF(MüügivihjeAndmed[Prognoositav \nlõpuleviimine] <>\"\",IF(MüügivihjeAndmed[Prognoositav \nlõpuleviimine] = \"August\",MüügivihjeAndmed[Kaalutud \nprognoos],0),\"\"),\"\")","v":""},{"$f":"IFERROR(IF(MüügivihjeAndmed[Prognoositav \nlõpuleviimine] <>\"\",IF(MüügivihjeAndmed[Prognoositav \nlõpuleviimine] = \"September\",MüügivihjeAndmed[Kaalutud \nprognoos],0),\"\"),\"\")","v":""},{"$f":"IFERROR(IF(MüügivihjeAndmed[Prognoositav \nlõpuleviimine] <>\"\",IF(MüügivihjeAndmed[Prognoositav \nlõpuleviimine] = \"Oktoober\",MüügivihjeAndmed[Kaalutud \nprognoos],0),\"\"),\"\")","v":""},{"$f":"IFERROR(IF(MüügivihjeAndmed[Prognoositav \nlõpuleviimine] <>\"\",IF(MüügivihjeAndmed[Prognoositav \nlõpuleviimine] = \"November\",MüügivihjeAndmed[Kaalutud \nprognoos],0),\"\"),\"\")","v":""},{"$f":"IFERROR(IF(MüügivihjeAndmed[Prognoositav \nlõpuleviimine] <>\"\",IF(MüügivihjeAndmed[Prognoositav \nlõpuleviimine] = \"Detsember\",MüügivihjeAndmed[Kaalutud \nprognoos],0),\"\"),\"\")","v":""}]
[null,{"$f":"IFERROR(IF(AND(MüügivihjeAndmed[Müügivihje nimi] <> \"\", ROW(Müügiprognoos[Müügivihje nimi])<>ViimaneKirje),MüügivihjeAndmed[Müügivihje nimi], \"\"),\"\")","v":""},{"$f":"IFERROR(IF(MüügivihjeAndmed[Prognoositav \nlõpuleviimine] <>\"\",IF(MüügivihjeAndmed[Prognoositav \nlõpuleviimine]= \"Jaanuar\",MüügivihjeAndmed[Kaalutud \nprognoos],0),\"\"),\"\")","v":""},{"$f":"IFERROR(IF(MüügivihjeAndmed[Prognoositav \nlõpuleviimine] <>\"\",IF(MüügivihjeAndmed[Prognoositav \nlõpuleviimine] = \"Veebruar\",MüügivihjeAndmed[Kaalutud \nprognoos],0),\"\"),\"\")","v":""},{"$f":"IFERROR(IF(MüügivihjeAndmed[Prognoositav \nlõpuleviimine] <>\"\",IF(MüügivihjeAndmed[Prognoositav \nlõpuleviimine] = \"Märts\",MüügivihjeAndmed[Kaalutud \nprognoos],0),\"\"),\"\")","v":""},{"$f":"IFERROR(IF(MüügivihjeAndmed[Prognoositav \nlõpuleviimine] <>\"\",IF(MüügivihjeAndmed[Prognoositav \nlõpuleviimine] = \"Aprill\",MüügivihjeAndmed[Kaalutud \nprognoos],0),\"\"),\"\")","v":""},{"$f":"IFERROR(IF(MüügivihjeAndmed[Prognoositav \nlõpuleviimine] <>\"\",IF(MüügivihjeAndmed[Prognoositav \nlõpuleviimine] = \"Mai\",MüügivihjeAndmed[Kaalutud \nprognoos],0),\"\"),\"\")","v":""},{"$f":"IFERROR(IF(MüügivihjeAndmed[Prognoositav \nlõpuleviimine] <>\"\",IF(MüügivihjeAndmed[Prognoositav \nlõpuleviimine] = \"Juuni\",MüügivihjeAndmed[Kaalutud \nprognoos],0),\"\"),\"\")","v":""},{"$f":"IFERROR(IF(MüügivihjeAndmed[Prognoositav \nlõpuleviimine] <>\"\",IF(MüügivihjeAndmed[Prognoositav \nlõpuleviimine] = \"Juuli\",MüügivihjeAndmed[Kaalutud \nprognoos],0),\"\"),\"\")","v":""},{"$f":"IFERROR(IF(MüügivihjeAndmed[Prognoositav \nlõpuleviimine] <>\"\",IF(MüügivihjeAndmed[Prognoositav \nlõpuleviimine] = \"August\",MüügivihjeAndmed[Kaalutud \nprognoos],0),\"\"),\"\")","v":""},{"$f":"IFERROR(IF(MüügivihjeAndmed[Prognoositav \nlõpuleviimine] <>\"\",IF(MüügivihjeAndmed[Prognoositav \nlõpuleviimine] = \"September\",MüügivihjeAndmed[Kaalutud \nprognoos],0),\"\"),\"\")","v":""},{"$f":"IFERROR(IF(MüügivihjeAndmed[Prognoositav \nlõpuleviimine] <>\"\",IF(MüügivihjeAndmed[Prognoositav \nlõpuleviimine] = \"Oktoober\",MüügivihjeAndmed[Kaalutud \nprognoos],0),\"\"),\"\")","v":""},{"$f":"IFERROR(IF(MüügivihjeAndmed[Prognoositav \nlõpuleviimine] <>\"\",IF(MüügivihjeAndmed[Prognoositav \nlõpuleviimine] = \"November\",MüügivihjeAndmed[Kaalutud \nprognoos],0),\"\"),\"\")","v":""},{"$f":"IFERROR(IF(MüügivihjeAndmed[Prognoositav \nlõpuleviimine] <>\"\",IF(MüügivihjeAndmed[Prognoositav \nlõpuleviimine] = \"Detsember\",MüügivihjeAndmed[Kaalutud \nprognoos],0),\"\"),\"\")","v":""}]
[null,{"$f":"IFERROR(IF(AND(MüügivihjeAndmed[Müügivihje nimi] <> \"\", ROW(Müügiprognoos[Müügivihje nimi])<>ViimaneKirje),MüügivihjeAndmed[Müügivihje nimi], \"\"),\"\")","v":""},{"$f":"IFERROR(IF(MüügivihjeAndmed[Prognoositav \nlõpuleviimine] <>\"\",IF(MüügivihjeAndmed[Prognoositav \nlõpuleviimine]= \"Jaanuar\",MüügivihjeAndmed[Kaalutud \nprognoos],0),\"\"),\"\")","v":""},{"$f":"IFERROR(IF(MüügivihjeAndmed[Prognoositav \nlõpuleviimine] <>\"\",IF(MüügivihjeAndmed[Prognoositav \nlõpuleviimine] = \"Veebruar\",MüügivihjeAndmed[Kaalutud \nprognoos],0),\"\"),\"\")","v":""},{"$f":"IFERROR(IF(MüügivihjeAndmed[Prognoositav \nlõpuleviimine] <>\"\",IF(MüügivihjeAndmed[Prognoositav \nlõpuleviimine] = \"Märts\",MüügivihjeAndmed[Kaalutud \nprognoos],0),\"\"),\"\")","v":""},{"$f":"IFERROR(IF(MüügivihjeAndmed[Prognoositav \nlõpuleviimine] <>\"\",IF(MüügivihjeAndmed[Prognoositav \nlõpuleviimine] = \"Aprill\",MüügivihjeAndmed[Kaalutud \nprognoos],0),\"\"),\"\")","v":""},{"$f":"IFERROR(IF(MüügivihjeAndmed[Prognoositav \nlõpuleviimine] <>\"\",IF(MüügivihjeAndmed[Prognoositav \nlõpuleviimine] = \"Mai\",MüügivihjeAndmed[Kaalutud \nprognoos],0),\"\"),\"\")","v":""},{"$f":"IFERROR(IF(MüügivihjeAndmed[Prognoositav \nlõpuleviimine] <>\"\",IF(MüügivihjeAndmed[Prognoositav \nlõpuleviimine] = \"Juuni\",MüügivihjeAndmed[Kaalutud \nprognoos],0),\"\"),\"\")","v":""},{"$f":"IFERROR(IF(MüügivihjeAndmed[Prognoositav \nlõpuleviimine] <>\"\",IF(MüügivihjeAndmed[Prognoositav \nlõpuleviimine] = \"Juuli\",MüügivihjeAndmed[Kaalutud \nprognoos],0),\"\"),\"\")","v":""},{"$f":"IFERROR(IF(MüügivihjeAndmed[Prognoositav \nlõpuleviimine] <>\"\",IF(MüügivihjeAndmed[Prognoositav \nlõpuleviimine] = \"August\",MüügivihjeAndmed[Kaalutud \nprognoos],0),\"\"),\"\")","v":""},{"$f":"IFERROR(IF(MüügivihjeAndmed[Prognoositav \nlõpuleviimine] <>\"\",IF(MüügivihjeAndmed[Prognoositav \nlõpuleviimine] = \"September\",MüügivihjeAndmed[Kaalutud \nprognoos],0),\"\"),\"\")","v":""},{"$f":"IFERROR(IF(MüügivihjeAndmed[Prognoositav \nlõpuleviimine] <>\"\",IF(MüügivihjeAndmed[Prognoositav \nlõpuleviimine] = \"Oktoober\",MüügivihjeAndmed[Kaalutud \nprognoos],0),\"\"),\"\")","v":""},{"$f":"IFERROR(IF(MüügivihjeAndmed[Prognoositav \nlõpuleviimine] <>\"\",IF(MüügivihjeAndmed[Prognoositav \nlõpuleviimine] = \"November\",MüügivihjeAndmed[Kaalutud \nprognoos],0),\"\"),\"\")","v":""},{"$f":"IFERROR(IF(MüügivihjeAndmed[Prognoositav \nlõpuleviimine] <>\"\",IF(MüügivihjeAndmed[Prognoositav \nlõpuleviimine] = \"Detsember\",MüügivihjeAndmed[Kaalutud \nprognoos],0),\"\"),\"\")","v":""}]
[null,"Kokku",{"$f":"SUBTOTAL(109,Müügiprognoos[Jaanuar \nprognoos])","v":{"v":270000,"d":"270,000 €"}},{"$f":"SUBTOTAL(109,Müügiprognoos[Veebruar \nprognoos])","v":{"v":20000,"d":"20,000 €"}},{"$f":"SUBTOTAL(109,Müügiprognoos[Märts \nprognoos])","v":{"v":20000,"d":"20,000 €"}},{"$f":"SUBTOTAL(109,Müügiprognoos[Aprill \nprognoos])","v":{"v":0,"d":"0 €"}},{"$f":"SUBTOTAL(109,Müügiprognoos[Mai \nprognoos])","v":{"v":0,"d":"0 €"}},{"$f":"SUBTOTAL(109,Müügiprognoos[Juuni \nprognoos])","v":{"v":0,"d":"0 €"}},{"$f":"SUBTOTAL(109,Müügiprognoos[Juuli prognoos])","v":{"v":0,"d":"0 €"}},{"$f":"SUBTOTAL(109,Müügiprognoos[August \nprognoos])","v":{"v":0,"d":"0 €"}},{"$f":"SUBTOTAL(109,Müügiprognoos[September \nprognoos])","v":{"v":0,"d":"0 €"}},{"$f":"SUBTOTAL(109,Müügiprognoos[Oktoober \nprognoos])","v":{"v":0,"d":"0 €"}},{"$f":"SUBTOTAL(109,Müügiprognoos[November \nprognoos])","v":{"v":0,"d":"0 €"}},{"$f":"SUBTOTAL(109,Müügiprognoos[Detsember \nprognoos])","v":{"v":0,"d":"0 €"}}]
[null,"Kumulatiivne kogusumma",{"$f":"C20","v":{"v":270000,"d":"270,000 €"}},{"$f":"C21+D20","v":{"v":290000,"d":"290,000 €"}},{"$f":"D21+E20","v":{"v":310000,"d":"310,000 €"}},{"$f":"E21+F20","v":{"v":310000,"d":"310,000 €"}},{"$f":"F21+G20","v":{"v":310000,"d":"310,000 €"}},{"$f":"G21+H20","v":{"v":310000,"d":"310,000 €"}},{"$f":"H21+I20","v":{"v":310000,"d":"310,000 €"}},{"$f":"I21+J20","v":{"v":310000,"d":"310,000 €"}},{"$f":"J21+K20","v":{"v":310000,"d":"310,000 €"}},{"$f":"K21+L20","v":{"v":310000,"d":"310,000 €"}},{"$f":"L21+M20","v":{"v":310000,"d":"310,000 €"}},{"$f":"M21+N20","v":{"v":310000,"d":"310,000 €"}}]

{"sheet":"Kaalutud kuupõhine prognoos","index":2,"n_rows":3,"n_cols":2,"rows_kept":3}
[null,{"$f":"Ettevõtte_nimi","v":"Ettevõtte nimi"}]
[null,"Kaalutud kuupõhine prognoos"]
[null," "]